[Event "Presidents Day NY GM A 2025"]
[Site "New York"]
[Date "2025.02.17"]
[Round "7.4"]
[White "Kaliksteyn, Alexander"]
[Black "Paragua, Mark"]
[Result "1/2-1/2"]
[Annotator "RC"]
[ECO "C54"]
[WhiteElo "2337"]
[BlackElo "2446"]
[PlyCount "30"]
[EventDate "2025.02.12"]
[EventType "tourn"]
[EventCountry "USA"]
[SourceTitle "playchess.com"]
[Source "ChessBase"]
[SourceQuality "1"]
[TimeControl "5400+30"]

1. e4 {[%emt 0:00:02]} e5 {[%emt 0:00:22]} 2. Bc4 {[%emt 0:00:05]} Nc6 {[%emt 0:00:11]} 3. Nf3 {[%emt 0:00:08]} Bc5 {[%emt 0:00:22]} 4. O-O {[%emt 0:00:17]} Nf6 {[%emt 0:00:08]} 5. d3 {[%emt 0:00:10]} d6 {[%emt 0:00:12]} 6. c3 {[%emt 0:00:27]} O-O {[%emt 0:00:30]} 7. h3 {[%emt 0:00:10]} h6 {[%emt 0:00:15]} 8. Re1 {[%emt 0:00:13]} Ne7 {[%emt 0:00:33]} 9. d4 {[%emt 0:01:18]} exd4 {[%emt 0:00:23]} 10. cxd4 {[%emt 0:00:04]} Bb4 {[%emt 0:00:25]} 11. Nc3 {[%emt 0:00:09]} c6 {[%emt 0:01:16]} 12. Bd3 {[%emt 0:02:45]} Be6 {[%emt 0:00:52]} 13. a3 {[%emt 0:00:48]} Ba5 {[%emt 0:00:27]} 14. b4 {[%emt 0:00:31]} Bb6 {[%emt 0:00:35]} 15. Be3 {[%emt 0:00:40]} a5 {[%emt 0:00:09]} 1/2-1/2

[Event "Presidents Day NY GM A 2025"]
[Site "New York"]
[Date "2025.02.17"]
[Round "7.5"]
[White "Nagy, Gabor"]
[Black "Stearman, Josiah"]
[Result "1/2-1/2"]
[Annotator "RC"]
[ECO "A49"]
[WhiteElo "2472"]
[BlackElo "2439"]
[PlyCount "32"]
[EventDate "2025.02.12"]
[EventType "tourn"]
[EventCountry "USA"]
[SourceTitle "playchess.com"]
[Source "ChessBase"]
[SourceQuality "1"]
[TimeControl "5400+30"]

1. d4 {[%emt 0:04:03]} Nf6 {[%emt 0:00:07]} 2. Nf3 {[%emt 0:00:19]} g6 {[%emt 0:00:12]} 3. g3 {[%emt 0:00:18]} Bg7 {[%emt 0:00:06]} 4. Bg2 {[%emt 0:00:07]} O-O {[%emt 0:00:09]} 5. O-O {[%emt 0:00:26]} d6 {[%emt 0:00:08]} 6. Re1 {[%emt 0:00:14]} c5 {[%emt 0:03:25]} 7. dxc5 {[%emt 1:28:33]} dxc5 {[%emt 0:00:05]} 8. Qxd8 {[%emt 0:00:00]} Rxd8 {[%emt 0:00:02]} 9. c3 {[%emt 0:00:00]} Be6 {[%emt 0:07:42]} 10. Ng5 {[%emt 0:00:00]} Bd5 {[%emt 0:01:09]} 11. e4 {[%emt 0:00:00]} Bc6 {[%emt 0:00:26]} 12. Nd2 {[%emt 0:00:00]} e5 {[%emt 0:02:56]} 13. Nc4 {[%emt 0:00:00]} h6 {[%emt 0:00:53]} 14. Nf3 {[%emt 0:00:00]} Bxe4 {[%emt 0:02:17]} 15. Nfxe5 {[%emt 0:00:00]} Bxg2 {[%emt 0:00:11]} 16. Kxg2 {[%emt 0:00:00]} Nbd7 {[%emt 0:00:39]} 1/2-1/2

[Event "Presidents Day NY GM A 2025"]
[Site "New York"]
[Date "2025.02.17"]
[Round "8.1"]
[White "Gauri, Shankar"]
[Black "Stearman, Josiah"]
[Result "0-1"]
[Annotator "RC"]
[ECO "A07"]
[WhiteElo "2360"]
[BlackElo "2439"]
[PlyCount "140"]
[EventDate "2025.02.12"]
[EventType "tourn"]
[EventCountry "USA"]
[SourceTitle "playchess.com"]
[Source "ChessBase"]
[SourceQuality "1"]
[TimeControl "5400+30"]

1. Nf3 {[%emt 0:02:13]} d5 {[%emt 0:12:56]} 2. g3 {[%emt 0:00:31]} Bg4 {[%emt 0:00:34]} 3. Bg2 {[%emt 0:00:11]} Nd7 {[%emt 0:00:06]} 4. h3 {[%emt 0:02:03]} Bxf3 {[%emt 0:00:17]} 5. Bxf3 {[%emt 0:02:03]} c6 {[%emt 0:00:30]} 6. d4 {[%emt 0:05:26]} e5 {[%emt 0:01:26]} 7. dxe5 {[%emt 0:01:19]} Nxe5 {[%emt 0:00:15]} 8. Bg2 {[%emt 0:00:02]} Nf6 {[%emt 0:00:54]} 9. O-O {[%emt 0:00:12]} Bc5 {[%emt 0:00:45]} 10. Nc3 {[%emt 0:05:57]} O-O {[%emt 0:00:53]} 11. e4 {[%emt 0:00:54]} Nxe4 {[%emt 0:01:50]} 12. Nxe4 {[%emt 0:01:36]} dxe4 {[%emt 0:00:03]} 13. Bxe4 {[%emt 0:04:29]} f5 {[%emt 0:00:15]} 14. Qxd8 {[%emt 0:01:51]} Raxd8 {[%emt 0:00:07]} 15. Bg2 {[%emt 0:00:14]} h6 {[%emt 0:08:16]} 16. Re1 {[%emt 0:07:27]} Ng6 {[%emt 0:05:12]} 17. Bf3 {[%emt 0:03:07]} f4 {[%emt 0:01:11]} 18. Kg2 {[%emt 0:06:41]} Rd6 {[%emt 0:03:36]} 19. b4 {[%emt 0:35:16]} fxg3 {[%emt 0:09:39]} 20. fxg3 {[%emt 0:00:45]} Bxb4 {[%emt 0:00:18]} 21. Re2 {[%emt 0:03:04]} Bc5 {[%emt 0:04:13]} 22. Bb2 {[%emt 0:02:12]} Bd4 {[%emt 0:05:05]} 23. Bxd4 {[%emt 0:04:40]} Rxd4 {[%emt 0:00:03]} 24. Rb1 {[%emt 0:00:07]} Rf7 {[%emt 0:01:33]} 25. Bh5 {[%emt 0:01:22]} Rd6 {[%emt 0:43:03]} 26. Rbe1 {[%emt 0:01:55]} Rf5 {[%emt 0:00:00]} 27. Bg4 {[%emt 0:01:33]} Rc5 {[%emt 0:00:00]} 28. h4 {[%emt 0:01:30]} h5 {[%emt 0:00:00]} 29. Be6+ {[%emt 0:00:53]} Kh7 {[%emt 0:00:00]} 30. Bb3 {[%emt 0:00:15]} Rc3 {[%emt 0:00:00]} 31. Rf1 {[%emt 0:01:28]} Rd4 {[%emt 0:00:00]} 32. Rf5 {[%emt 0:01:15]} Kh6 {[%emt 0:00:00]} 33. Rg5 {[%emt 0:02:12]} Rg4 {[%emt 0:00:00]} 34. Rxg4 {[%emt 0:00:26]} hxg4 {[%emt 0:00:00]} 35. Re4 {[%emt 0:01:44]} c5 {[%emt 0:00:00]} 36. a4 {[%emt 0:00:42]} b6 {[%emt 0:00:00]} 37. Rxg4 {[%emt 0:00:19]} Ne5 {[%emt 0:00:00]} 38. Re4 {[%emt 0:00:19]} Nf3 {[%emt 0:00:00]} 39. Bf7 {[%emt 0:01:14]} Nd4 {[%emt 0:00:00]} 40. Re8 {[%emt 0:00:29]} Kh7 {[%emt 0:00:00]} 41. h5 {[%emt 0:00:32]} Kh6 {[%emt 0:00:00]} 42. Bg6 {[%emt 0:00:30]} Nxc2 {[%emt 0:00:00]} 43. Kh3 {[%emt 0:00:21]} Ne3 {[%emt 0:00:00]} 44. Kh4 {[%emt 0:00:30]} Rc4+ {[%emt 0:00:00]} 45. g4 {[%emt 0:00:30]} Rxg4+ {[%emt 0:00:00]} 46. Kh3 {[%emt 0:00:01]} Rxg6 {[%emt 0:00:00]} 47. hxg6 {[%emt 0:00:02]} Nc4 {[%emt 0:00:00]} 48. Kg4 {[%emt 0:01:27]} Kxg6 {[%emt 0:00:00]} 49. Kf4 {[%emt 0:00:16]} Kf6 {[%emt 0:00:00]} 50. Rf8+ {[%emt 0:00:25]} Ke6 {[%emt 0:00:00]} 51. Rg8 {[%emt 0:00:16]} Kd5 {[%emt 0:00:00]} 52. Rxg7 {[%emt 0:00:18]} a5 {[%emt 0:00:00]} 53. Rd7+ {[%emt 0:01:18]} Kc6 {[%emt 0:00:00]} 54. Rd1 {[%emt 0:00:37]} Nb2 {[%emt 0:00:00]} 55. Ra1 {[%emt 0:00:01]} c4 {[%emt 0:00:00]} 56. Ra2 {[%emt 0:00:44]} Nd3+ {[%emt 0:00:00]} 57. Ke3 {[%emt 0:00:15]} Kc5 {[%emt 0:00:00]} 58. Rh2 {[%emt 0:00:33]} Kb4 {[%emt 0:00:00]} 59. Rh6 {[%emt 0:00:07]} Kxa4 {[%emt 0:00:00]} 60. Rxb6 {[%emt 0:00:24]} Nb4 {[%emt 0:00:00]} 61. Kd4 {[%emt 0:01:13]} Kb3 {[%emt 0:00:00]} 62. Rh6 {[%emt 0:00:43]} c3 {[%emt 0:00:00]} 63. Rh3 {[%emt 0:00:22]} Na2 {[%emt 0:00:00]} 64. Kc5 {[%emt 0:00:38]} a4 {[%emt 0:00:00]} 65. Kb5 {[%emt 0:00:30]} a3 {[%emt 0:00:00]} 66. Ka5 {[%emt 0:00:28]} Nb4 {[%emt 0:00:00]} 67. Rh4 {[%emt 0:00:32]} Nc6+ {[%emt 0:00:00]} 68. Kb5 {[%emt 0:00:14]} a2 {[%emt 0:00:00]} 69. Rh1 {[%emt 0:00:36]} Nd4+ {[%emt 0:00:00]} 70. Kc5 {[%emt 0:00:29]} Nc2 {[%emt 0:00:00]} 0-1

[Event "Presidents Day NY GM A 2025"]
[Site "New York"]
[Date "2025.02.17"]
[Round "8.2"]
[White "Paragua, Mark"]
[Black "Nagy, Gabor"]
[Result "1/2-1/2"]
[Annotator "ChessBase"]
[ECO "E08"]
[WhiteElo "2446"]
[BlackElo "2472"]
[PlyCount "28"]
[EventDate "2025.02.12"]
[EventType "tourn"]
[EventCountry "USA"]
[SourceTitle "playchess.com"]
[Source "ChessBase"]
[SourceQuality "1"]
[TimeControl "5400+30"]

1. d4 {[%emt 0:02:26]} d5 {[%emt 0:00:09]} 2. c4 {[%emt 0:00:07]} e6 {[%emt 0:00:05]} 3. Nf3 {[%emt 0:00:09]} Nf6 {[%emt 0:00:07]} 4. g3 {[%emt 0:00:19]} Bb4+ {[%emt 0:00:10]} 5. Bd2 {[%emt 0:00:07]} Be7 {[%emt 0:00:06]} 6. Bg2 {[%emt 0:00:09]} O-O {[%emt 0:00:08]} 7. O-O {[%emt 0:00:05]} Nbd7 {[%emt 0:00:08]} 8. Qc2 {[%emt 0:00:13]} c6 {[%emt 0:00:06]} 9. Bf4 {[%emt 0:00:23]} Nh5 {[%emt 0:00:08]} 10. Bc1 {[%emt 0:00:16]} Nhf6 {[%emt 0:00:07]} 11. Bf4 {[%emt 0:00:06]} Nh5 {[%emt 0:00:06]} 12. Bc1 {[%emt 0:00:04]} Nhf6 {[%emt 0:00:05]} 13. Bf4 {[%emt 0:00:03]} Nh5 {[%emt 0:00:37]} 14. Bc1 {[%emt 0:00:30]} Nhf6 {[%emt 0:00:30]} 1/2-1/2

[Event "Presidents Day NY GM A 2025"]
[Site "New York"]
[Date "2025.02.17"]
[Round "8.3"]
[White "Putnam, Liam"]
[Black "Kaliksteyn, Alexander"]
[Result "1/2-1/2"]
[Annotator "RC"]
[ECO "B94"]
[WhiteElo "2402"]
[BlackElo "2337"]
[PlyCount "113"]
[EventDate "2025.02.12"]
[EventType "tourn"]
[EventCountry "USA"]
[SourceTitle "playchess.com"]
[Source "ChessBase"]
[SourceQuality "1"]
[TimeControl "5400+30"]

1. e4 {[%emt 0:09:01]} c5 {[%emt 0:00:05]} 2. Nf3 {[%emt 0:00:06]} d6 {[%emt 0:00:03]} 3. d4 {[%emt 0:00:06]} cxd4 {[%emt 0:00:05]} 4. Nxd4 {[%emt 0:00:05]} Nf6 {[%emt 0:00:04]} 5. Nc3 {[%emt 0:00:02]} a6 {[%emt 0:00:04]} 6. Bg5 {[%emt 0:00:14]} Nbd7 {[%emt 0:00:24]} 7. Bc4 {[%emt 0:00:19]} Qb6 {[%emt 0:02:05]} 8. Bb3 {[%emt 0:00:57]} e6 {[%emt 0:00:08]} 9. Qd2 {[%emt 0:00:38]} Be7 {[%emt 0:01:56]} 10. O-O-O {[%emt 0:00:32]} Nc5 {[%emt 0:00:30]} 11. Rhe1 {[%emt 0:00:42]} Qc7 {[%emt 0:31:11]} 12. f4 {[%emt 0:05:48]} h6 {[%emt 0:03:10]} 13. Bxf6 {[%emt 0:50:14]} Bxf6 {[%emt 0:00:15]} 14. Nf5 {[%emt 0:03:23]} exf5 {[%emt 0:05:01]} 15. Nd5 {[%emt 0:00:36]} Qd8 {[%emt 0:05:26]} 16. exf5+ {[%emt 0:02:26]} Kf8 {[%emt 0:00:07]} 17. g4 {[%emt 0:00:10]} Bd7 {[%emt 0:17:53]} 18. Bc4 {[%emt 0:11:00]} Bc6 {[%emt 0:05:55]} 19. Nxf6 {[%emt 0:01:18]} gxf6 {[%emt 0:02:17]} 20. b4 {[%emt 0:01:48]} b5 {[%emt 0:12:00]} 21. Qxd6+ {[%emt 0:02:59]} Qxd6 {[%emt 0:00:07]} 22. Rxd6 {[%emt 0:00:02]} bxc4 {[%emt 0:08:38]} 23. Rxc6 {[%emt 0:00:04]} Na4 {[%emt 0:00:16]} 24. Rxc4 {[%emt 0:01:44]} Kg7 {[%emt 0:00:17]} 25. Re7 {[%emt 0:00:39]} Rac8 {[%emt 0:01:24]} 26. Rcc7 {[%emt 0:00:19]} Rxc7 {[%emt 0:00:06]} 27. Rxc7 {[%emt 0:00:02]} Re8 {[%emt 0:01:11]} 28. Rc6 {[%emt 0:00:01]} Re4 {[%emt 0:00:24]} 29. c4 {[%emt 0:00:43]} Re2 {[%emt 0:02:34]} 30. Rxa6 {[%emt 0:00:52]} Nc3 {[%emt 0:00:08]} 31. Ra3 {[%emt 0:04:43]} Nxa2+ {[%emt 0:00:10]} 32. Kd1 {[%emt 0:00:03]} Rxh2 {[%emt 0:01:46]} 33. Rb3 {[%emt 0:00:04]} Rh1+ {[%emt 0:00:44]} 34. Kc2 {[%emt 0:00:11]} Rf1 {[%emt 0:00:33]} 35. b5 {[%emt 0:03:43]} Rxf4 {[%emt 0:00:11]} 36. Kb1 {[%emt 0:00:06]} Rxc4 {[%emt 0:00:47]} 37. Kxa2 {[%emt 0:00:07]} Rxg4 {[%emt 0:00:22]} 38. Ka3 {[%emt 0:02:58]} Re4 {[%emt 0:00:10]} 39. b6 {[%emt 0:00:03]} Re8 {[%emt 0:00:04]} 40. Kb4 {[%emt 0:01:05]} h5 {[%emt 0:00:08]} 41. Kc5 {[%emt 0:00:11]} Kh6 {[%emt 0:00:53]} 42. b7 {[%emt 0:00:36]} Rb8 {[%emt 0:00:11]} 43. Kc6 {[%emt 0:00:14]} Kg5 {[%emt 0:00:07]} 44. Kc7 {[%emt 0:00:13]} Rxb7+ {[%emt 0:00:49]} 45. Kxb7 {[%emt 0:01:16]} Kxf5 {[%emt 0:00:28]} 46. Rb4 {[%emt 0:00:34]} Kg5 {[%emt 0:01:40]} 47. Kc6 {[%emt 0:00:17]} h4 {[%emt 0:00:05]} 48. Kd5 {[%emt 0:00:22]} h3 {[%emt 0:00:52]} 49. Rb8 {[%emt 0:00:46]} Kf4 {[%emt 0:00:43]} 50. Rh8 {[%emt 0:00:29]} Kg3 {[%emt 0:00:07]} 51. Ke4 {[%emt 0:00:11]} h2 {[%emt 0:00:49]} 52. Ke3 {[%emt 0:00:25]} Kg2 {[%emt 0:00:33]} 53. Rg8+ {[%emt 0:00:14]} Kf1 {[%emt 0:00:07]} 54. Rh8 {[%emt 0:00:06]} Kg2 {[%emt 0:00:06]} 55. Ke2 {[%emt 0:00:45]} h1=Q {[%emt 0:00:07]} 56. Rg8+ {[%emt 0:00:24]} Kh3 {[%emt 0:00:14]} 57. Rh8+ {[%emt 0:00:36]} 1/2-1/2

[Event "Presidents Day NY GM A 2025"]
[Site "New York"]
[Date "2025.02.17"]
[Round "8.4"]
[White "Jacobson, Aaron"]
[Black "Park, Evan"]
[Result "0-1"]
[Annotator "RC"]
[ECO "D55"]
[WhiteElo "2343"]
[BlackElo "2415"]
[PlyCount "112"]
[EventDate "2025.02.12"]
[EventType "tourn"]
[EventCountry "USA"]
[SourceTitle "playchess.com"]
[Source "ChessBase"]
[SourceQuality "1"]
[TimeControl "5400+30"]

1. c4 {[%emt 0:01:40]} e6 {[%emt 0:00:09]} 2. Nc3 {[%emt 0:00:06]} d5 {[%emt 0:00:10]} 3. d4 {[%emt 0:00:08]} Nf6 {[%emt 0:00:18]} 4. Bg5 {[%emt 0:00:04]} Be7 {[%emt 0:01:43]} 5. e3 {[%emt 0:00:12]} O-O {[%emt 0:00:26]} 6. Nf3 {[%emt 0:00:04]} b6 {[%emt 0:03:24]} 7. Qc2 {[%emt 0:06:59]} Bb7 {[%emt 0:01:11]} 8. cxd5 {[%emt 0:02:59]} exd5 {[%emt 0:02:13]} 9. Bd3 {[%emt 0:00:12]} Nbd7 {[%emt 0:01:10]} 10. O-O {[%emt 0:06:02]} c5 {[%emt 0:05:18]} 11. Rad1 {[%emt 0:00:42]} h6 {[%emt 0:01:10]} 12. Bh4 {[%emt 0:00:41]} Re8 {[%emt 0:03:02]} 13. Bf5 {[%emt 0:01:37]} cxd4 {[%emt 0:15:22]} 14. Rd2 {[%emt 1:16:04]} d3 15. Rxd3 {[%emt 0:00:00]} Nf8 {[%emt 0:11:39]} 16. Rd4 {[%emt 0:00:00]} g6 {[%emt 0:05:49]} 17. Qe2 {[%emt 0:00:00]} Ne6 {[%emt 0:00:27]} 18. Bc2 {[%emt 0:00:00]} Qc7 {[%emt 0:04:19]} 19. Rd2 {[%emt 0:00:00]} Rac8 {[%emt 0:42:10]} 20. Qd1 Rcd8 {[%emt 0:00:00]} 21. Ba4 {[%emt 0:00:00]} Rf8 {[%emt 0:00:00]} 22. Bb3 {[%emt 0:00:00]} Nc5 {[%emt 0:01:30]} 23. Bxf6 {[%emt 0:00:00]} Bxf6 {[%emt 0:00:00]} 24. Nxd5 {[%emt 0:00:00]} Bxd5 {[%emt 0:01:00]} 25. Bxd5 {[%emt 0:00:00]} a5 {[%emt 0:00:00]} 26. Qc2 {[%emt 0:00:00]} Kg7 {[%emt 0:00:00]} 27. Rfd1 {[%emt 0:00:00]} Rfe8 {[%emt 0:00:00]} 28. e4 {[%emt 0:00:00]} Qf4 {[%emt 0:00:00]} 29. Re1 {[%emt 0:00:00]} h5 {[%emt 0:00:00]} 30. Qc4 {[%emt 0:00:00]} Re7 {[%emt 0:00:00]} 31. Rde2 {[%emt 0:00:00]} Kf8 {[%emt 0:00:00]} 32. Nd4 {[%emt 0:00:00]} Rxd5 {[%emt 0:00:00]} 33. Qxd5 {[%emt 0:00:00]} Rd7 {[%emt 0:00:00]} 34. Qa8+ {[%emt 0:00:00]} Rd8 {[%emt 0:00:00]} 35. Qc6 {[%emt 0:10:30]} Rxd4 {[%emt 0:00:00]} 36. Qxb6 {[%emt 0:00:00]} Nd3 {[%emt 0:00:00]} 37. Rd1 {[%emt 0:00:00]} Be5 {[%emt 0:00:00]} 38. g3 {[%emt 0:00:00]} Qf3 {[%emt 0:00:00]} 39. Rdd2 {[%emt 0:00:00]} Ne1 {[%emt 0:02:03]} 40. Qc5+ {[%emt 0:00:00]} Kg8 {[%emt 0:00:20]} 41. Qc8+ {[%emt 0:00:00]} Kg7 {[%emt 0:00:12]} 42. Qh3 {[%emt 0:00:00]} Rxd2 {[%emt 0:00:31]} 43. Rxd2 {[%emt 0:00:00]} Qxe4 {[%emt 0:00:07]} 44. Rd7 {[%emt 0:01:28]} Nf3+ {[%emt 0:01:06]} 45. Kf1 {[%emt 0:00:06]} Qc4+ {[%emt 0:02:04]} 46. Kg2 {[%emt 0:00:03]} Ng5 {[%emt 0:00:31]} 47. Qh4 {[%emt 0:00:04]} Qc6+ {[%emt 0:00:06]} 48. Kf1 {[%emt 0:00:05]} Qxd7 {[%emt 0:00:32]} 49. Qxg5 {[%emt 0:00:03]} Qb5+ {[%emt 0:00:05]} 50. Kg2 {[%emt 0:00:05]} Qxb2 {[%emt 0:00:04]} 51. a4 {[%emt 0:00:07]} Bd4 {[%emt 0:00:12]} 52. Qf4 {[%emt 0:00:04]} Qb4 {[%emt 0:00:15]} 53. h4 {[%emt 0:00:19]} Bf6 {[%emt 0:00:27]} 54. Qxb4 {[%emt 0:00:06]} axb4 {[%emt 0:00:04]} 55. a5 {[%emt 0:00:03]} b3 {[%emt 0:00:04]} 56. a6 {[%emt 0:00:02]} Bd4 {[%emt 0:00:03]} 0-1

[Event "Presidents Day NY GM A 2025"]
[Site "New York"]
[Date "2025.02.17"]
[Round "8.5"]
[White "Lenderman, Aleksandr"]
[Black "Yang, Qindong"]
[Result "1/2-1/2"]
[Annotator "ChessBase"]
[ECO "E36"]
[WhiteElo "2480"]
[BlackElo "2202"]
[PlyCount "38"]
[EventDate "2025.02.12"]
[EventType "tourn"]
[EventCountry "USA"]
[SourceTitle "playchess.com"]
[Source "ChessBase"]
[SourceQuality "1"]
[TimeControl "5400+30"]

1. d4 {[%emt 0:00:03]} Nf6 {[%emt 0:11:33]} 2. c4 {[%emt 0:00:06]} e6 {[%emt 0:00:14]} 3. Nc3 {[%emt 0:00:05]} Bb4 {[%emt 0:00:12]} 4. Qc2 {[%emt 0:00:06]} d5 {[%emt 0:00:32]} 5. a3 {[%emt 0:00:09]} Bxc3+ {[%emt 0:00:10]} 6. Qxc3 {[%emt 0:00:09]} O-O {[%emt 0:00:20]} 7. Nf3 {[%emt 0:00:42]} dxc4 {[%emt 0:03:33]} 8. Qxc4 {[%emt 0:00:08]} b6 {[%emt 0:00:05]} 9. Bg5 {[%emt 0:00:23]} Bb7 {[%emt 0:01:05]} 10. Rd1 {[%emt 0:01:27]} Nbd7 {[%emt 0:12:44]} 11. Ne5 {[%emt 0:00:29]} c5 {[%emt 0:09:24]} 12. Nxd7 {[%emt 0:02:16]} Qxd7 {[%emt 0:00:28]} 13. dxc5 {[%emt 0:00:33]} Qc7 {[%emt 0:03:54]} 14. Bxf6 {[%emt 0:04:29]} gxf6 {[%emt 0:00:37]} 15. Qg4+ {[%emt 0:00:36]} Kh8 {[%emt 0:00:11]} 16. Qd4 {[%emt 0:00:15]} Qe7 {[%emt 0:07:27]} 17. Qd6 {[%emt 0:02:15]} Qxd6 {[%emt 0:01:56]} 18. cxd6 {[%emt 0:01:04]} Rfd8 {[%emt 0:01:23]} 19. f3 {[%emt 0:01:01]} Rac8 {[%emt 0:01:25]} 1/2-1/2

[Event "Presidents Day NY GM A 2025"]
[Site "New York"]
[Date "2025.02.17"]
[Round "9.1"]
[White "Yang, Qindong"]
[Black "Gauri, Shankar"]
[Result "1/2-1/2"]
[Annotator "RC"]
[ECO "E16"]
[WhiteElo "2202"]
[BlackElo "2360"]
[PlyCount "35"]
[EventDate "2025.02.12"]
[EventType "tourn"]
[EventCountry "USA"]
[SourceTitle "playchess.com"]
[Source "ChessBase"]
[SourceQuality "1"]
[TimeControl "5400+30"]

1. d4 {[%emt 0:03:47]} Nf6 {[%emt 0:05:10]} 2. c4 {[%emt 0:00:16]} e6 {[%emt 0:00:21]} 3. Nf3 {[%emt 0:00:14]} b6 {[%emt 0:00:06]} 4. g3 {[%emt 0:00:09]} Bb7 {[%emt 0:00:05]} 5. Bg2 {[%emt 0:00:23]} Bb4+ {[%emt 0:00:22]} 6. Nbd2 {[%emt 0:01:14]} O-O {[%emt 0:01:08]} 7. O-O {[%emt 0:00:46]} d5 {[%emt 0:00:59]} 8. Ne5 {[%emt 0:00:25]} a5 {[%emt 0:01:48]} 9. a3 {[%emt 0:00:49]} Be7 {[%emt 0:04:37]} 10. b3 {[%emt 0:00:16]} c5 {[%emt 0:02:55]} 11. Bb2 {[%emt 0:00:23]} Nbd7 {[%emt 0:11:56]} 12. e3 {[%emt 0:05:24]} Rc8 {[%emt 0:03:36]} 13. Rc1 {[%emt 0:01:34]} Rc7 {[%emt 0:01:44]} 14. Re1 {[%emt 0:10:51]} Qc8 {[%emt 0:06:04]} 15. cxd5 {[%emt 0:08:29]} Bxd5 {[%emt 0:04:57]} 16. e4 {[%emt 0:01:02]} Bb7 {[%emt 0:04:31]} 17. Ndc4 {[%emt 0:01:27]} cxd4 {[%emt 0:01:44]} 18. Nxd7 {[%emt 1:02:01]} 1/2-1/2

[Event "Presidents Day NY GM A 2025"]
[Site "New York"]
[Date "2025.02.17"]
[Round "9.2"]
[White "Park, Evan"]
[Black "Lenderman, Aleksandr"]
[Result "1/2-1/2"]
[Annotator "RC"]
[ECO "C10"]
[WhiteElo "2415"]
[BlackElo "2480"]
[PlyCount "35"]
[EventDate "2025.02.12"]
[EventType "tourn"]
[EventCountry "USA"]
[SourceTitle "playchess.com"]
[Source "ChessBase"]
[SourceQuality "1"]
[TimeControl "5400+30"]

1. e4 {[%emt 0:00:08]} e6 {[%emt 0:00:04]} 2. d4 {[%emt 0:00:06]} d5 {[%emt 0:00:06]} 3. Nc3 {[%emt 0:00:04]} dxe4 {[%emt 0:00:04]} 4. Nxe4 {[%emt 0:00:19]} Bd7 {[%emt 0:00:04]} 5. Nf3 {[%emt 0:02:49]} Bc6 {[%emt 0:00:08]} 6. Bd3 {[%emt 0:00:31]} Nd7 {[%emt 0:00:08]} 7. Qe2 {[%emt 0:02:36]} Ngf6 {[%emt 0:00:25]} 8. Nxf6+ {[%emt 0:00:37]} Nxf6 {[%emt 0:00:09]} 9. Be3 {[%emt 0:02:18]} Bxf3 {[%emt 0:00:25]} 10. Qxf3 {[%emt 0:00:07]} Qd5 {[%emt 0:00:04]} 11. Qxd5 {[%emt 0:02:11]} Nxd5 {[%emt 0:00:10]} 12. Bd2 {[%emt 0:02:18]} Be7 {[%emt 0:01:52]} 13. O-O {[%emt 0:02:48]} O-O {[%emt 0:00:52]} 14. Rad1 {[%emt 0:01:50]} Rfd8 {[%emt 0:00:27]} 15. c3 {[%emt 0:03:17]} Rd7 {[%emt 0:00:24]} 16. Be4 {[%emt 0:00:43]} Rad8 {[%emt 0:00:36]} 17. Bf3 {[%emt 0:01:14]} c6 {[%emt 0:00:54]} 18. g3 {[%emt 0:03:40]} 1/2-1/2

[Event "Presidents Day NY GM A 2025"]
[Site "New York"]
[Date "2025.02.18"]
[Round "9.3"]
[White "Kaliksteyn, Alexander"]
[Black "Jacobson, Aaron"]
[Result "1/2-1/2"]
[Annotator "RC"]
[ECO "A29"]
[WhiteElo "2337"]
[BlackElo "2343"]
[PlyCount "61"]
[EventDate "2025.02.12"]
[EventType "tourn"]
[EventCountry "USA"]
[SourceTitle "playchess.com"]
[Source "ChessBase"]
[SourceQuality "1"]
[TimeControl "5400+30"]

1. c4 {[%emt 0:00:03]} e5 {[%emt 0:00:31]} 2. Nc3 {[%emt 0:00:35]} Nf6 {[%emt 0:00:07]} 3. Nf3 {[%emt 0:00:11]} Nc6 {[%emt 0:00:05]} 4. g3 {[%emt 0:00:12]} Bb4 {[%emt 0:00:13]} 5. Nd5 {[%emt 0:01:53]} Bc5 {[%emt 0:00:20]} 6. Bg2 {[%emt 0:00:19]} O-O {[%emt 0:00:14]} 7. O-O {[%emt 0:00:33]} d6 {[%emt 0:00:09]} 8. d3 {[%emt 0:10:42]} h6 {[%emt 0:00:54]} 9. e3 {[%emt 0:01:38]} Bb6 {[%emt 0:01:22]} 10. Nxb6 {[%emt 0:12:37]} axb6 {[%emt 0:00:02]} 11. b3 {[%emt 0:00:08]} d5 {[%emt 0:06:27]} 12. cxd5 {[%emt 0:01:05]} Nxd5 {[%emt 0:00:38]} 13. Bb2 {[%emt 0:00:08]} Re8 {[%emt 0:00:19]} 14. a3 {[%emt 0:05:04]} b5 {[%emt 0:02:36]} 15. e4 {[%emt 0:06:21]} Nf6 {[%emt 0:02:12]} 16. h3 {[%emt 0:00:13]} Qd6 {[%emt 0:00:33]} 17. Re1 {[%emt 0:00:18]} Nd7 {[%emt 0:05:36]} 18. d4 {[%emt 0:11:16]} exd4 {[%emt 0:00:22]} 19. Nxd4 {[%emt 0:00:24]} Nxd4 {[%emt 0:00:10]} 20. Qxd4 {[%emt 0:00:20]} Qxd4 {[%emt 0:00:06]} 21. Bxd4 {[%emt 0:00:03]} Ne5 {[%emt 0:07:26]} 22. Rec1 {[%emt 0:09:49]} Nc6 {[%emt 0:01:30]} 23. Bb2 {[%emt 0:00:14]} Be6 {[%emt 0:00:54]} 24. Rc5 {[%emt 0:01:06]} Rad8 {[%emt 0:11:56]} 25. Rxb5 {[%emt 0:07:35]} Rd2 {[%emt 0:00:11]} 26. Bc3 {[%emt 0:01:22]} Rc2 {[%emt 0:01:37]} 27. Rc5 {[%emt 0:00:32]} Nb8 {[%emt 0:07:43]} 28. Bf1 {[%emt 0:29:49]} Na6 29. Bxa6 bxa6 30. Rxc7 {[%emt 0:01:00]} Bxh3 {[%emt 0:51:17]} 31. Re1 {[%emt 0:00:30]} 1/2-1/2